Cogmind - Beta 11.1 @@@ ROGUE MODE // 2022.06.01 @ 19:29:09 Player: Nix Result: Destroyed by Y-45 Defender with Heavy Assault Rifle Performance ------------- Evolutions (2) 1000 Regions Visited (7) 1400 Robots Destroyed (25) 125 Value Destroyed (646) 646 Prototype IDs (0) 0 Alien Tech Used (0) 0 Bonus (-13) -13 TOTAL SCORE: 3158 Bonus ------- Follower Combat Kills 7 Friendly Fire -20 Cogmind --------- Core Integrity 0/550 Matter 194/300 Energy 264/265 System Corruption 0% Temperature Cool (0) Movement Core (250) Ox4 Location -8/Materials Parts ------- > --- POWER (1) -------- Improved Ion Engine > --- PROPULSION (4) --- (None) > --- UTILITY (4) ------ Small Storage Unit > --- WEAPON (2) ------- High-powered Shotgun > --- INVENTORY (8) ---- (None) Peak State ------------ > --- POWER ------------ Light Ion Engine > --- PROPULSION ------- Aluminum Leg Aluminum Leg Improved Aluminum Leg Compact Wheel > --- UTILITY ---------- Small Storage Unit Small Storage Unit Targeting Computer ECM Suite > --- WEAPON ----------- Particle Gun Assault Cannon > --- INVENTORY -------- Improved Ion Engine Improved Ion Engine Beam Rifle Heavy Assault Rifle Grenade Launcher Scythe [Rating: 16] Favorites ----------- Power Light Ion Engine Engine Light Ion Engine Propulsion Aluminum Leg Leg Aluminum Leg Wheel Compact Wheel Utility Small Storage Unit Device ECM Suite Storage Small Storage Unit Processor Targeting Computer Weapon Medium Laser Energy Gun Medium Laser Ballistic Gun Heavy Assault Rifle Ballistic Cannon Assault Cannon Launcher Grenade Launcher Slashing Weapon Scythe Build | -11 -10 -10 -9 -9 -9 -8 -8 ------- Run | Scr Mat Min Mat Min Exi Min Mat Slots Evolved 4 | . . . 2 . . . 2 Power . | . . . . . . . . Propulsion 2 | . . . 2 . . . . Utility 2 | . . . . . . . 2 Weapon . | . . . . . . . . Parts Attached 26 | 6 1 3 2 . . 5 9 Power 4 | 1 . 1 . . . . 2 Engine 4 | 1 . 1 . . . . 2 Core . | . . . . . . . . Reactor . | . . . . . . . . Propulsion 8 | 2 . 1 2 . . 3 . Treads . | . . . . . . . . Leg 6 | 2 . 1 . . . 3 . Wheel 2 | . . . 2 . . . . Hover . | . . . . . . . . Flight . | . . . . . . . . Utility 4 | 1 1 . . . . . 2 Device 1 | . . . . . . . 1 Storage 2 | 1 . . . . . . 1 Processor 1 | . 1 . . . . . . Hackware . | . . . . . . . . Protection . | . . . . . . . . Artifact . | . . . . . . . . Weapon 10 | 2 . 1 . . . 2 5 Energy Gun 3 | 1 . . . . . 1 1 Energy Cannon . | . . . . . . . . Ballistic Gun 4 | 1 . 1 . . . . 2 Ballistic Cannon 1 | . . . . . . 1 . Launcher 1 | . . . . . . . 1 Special Weapon . | . . . . . . . . Impact Weapon . | . . . . . . . . Slashing Weapon 1 | . . . . . . . 1 Piercing Weapon . | . . . . . . . . Special Melee Weapon . | . . . . . . . . Unidentified Prototypes . | . . . . . . . . Parts Lost 18 | . . 1 . . . 2 15 Power 3 | . . 1 . . . . 2 Propulsion 6 | . . . . . . 2 4 Utility 3 | . . . . . . . 3 Weapon 6 | . . . . . . . 6 Highest Loss Streak 15 | . . 1 . . . 1 15 To Critical Strikes . | . . . . . . . . Average Slot Usage (%) 93 | . 96 98 97 100 100 94 52 Engine 11 | . 14 12 11 11 11 11 6 Leg 23 | . 28 28 22 22 22 21 8 Wheel 9 | . . . 19 22 22 17 3 Storage 12 | . 14 14 11 11 11 11 15 Processor 11 | . 10 14 11 11 11 11 6 Energy Gun 11 | . 14 14 11 11 11 11 4 Ballistic Gun 10 | . 14 14 11 11 11 6 2 Ballistic Cannon 1 | . . . . . . 4 1 Naked Turns . | . . . . . . . . Heaviest Build 23 | 14 14 14 13 13 13 16 23 Greatest Support 33 | 20 20 20 26 26 26 33 33 Greatest Overweight (x) 6 | 2 . . . . . . 6 Average Overweight (x) . | . . . . . . . 1 Largest Inventory Capacity 8 | 8 8 8 8 8 8 8 8 Average Capacity 7 | 7 8 8 8 8 8 8 8 Most Carried 8 | 4 6 8 8 7 8 8 7 Average Carried 6 | 2 5 7 6 7 7 7 2 Final Capacity 8 | 8 8 8 8 8 8 8 8 Final Carried 8 | 4 6 8 7 7 8 8 . Class Distribution -------------------- 100% | Mutant Dominant Class ---------------- Mutant | -10/Materials Mutant | -10/Mines Mutant | -9/Materials Mutant | -9/Mines Mutant | -9/Exiles Mutant | -8/Mines Mutant | -8/Materials Resources | -11 -10 -10 -9 -9 -9 -8 -8 ----------- Run | Scr Mat Min Mat Min Exi Min Mat Matter Collected 513 | 180 29 149 44 . . 111 . Remotely . | . . . . . . . . Salvage Created 742 | . 29 131 105 . . 330 147 Parts 41 | . . 6 10 . . 17 8 Haulers Intercepted . | . . . . . . . . Recyclers Shooed . | . . . . . . . . Parts Field Recycled . | . . . . . . . . Retrieved Matter . | . . . . . . . . Parts Self-Destructed . | . . . . . . . . Prevented . | . . . . . . . . Kills | -11 -10 -10 -9 -9 -9 -8 -8 ------- Run | Scr Mat Min Mat Min Exi Min Mat Combat Hostiles Destroyed 24 | . 2 4 4 . . 11 3 Guns 19 | . 2 4 4 . . 7 2 Cannons 4 | . . . . . . 4 . AOE 1 | . . . . . . . 1 Classes Destroyed 6 | . 1 1 1 . . 2 1 Recycler 1 | . . . . . . . 1 Swarmer 13 | . 2 2 3 . . 6 . Grunt 7 | . . 2 . . . 2 3 Brawler 1 | . . . . . . 1 . Sentry 1 | . . . 1 . . . . Hunter 2 | . . . . . . 2 . Best Kill Streak 6 | . 1 2 3 . . 6 2 Combat Bots Only 6 | . 1 2 3 . . 6 2 Max Kills in Single Turn 1 | . 1 1 1 . . 1 1 Gunslinging . | . . . . . . . . Exploded 1 | . . . . . . . 1 Melee . | . . . . . . . . Uniques/NPCs Destroyed . | . . . . . . . . Combat | -11 -10 -10 -9 -9 -9 -8 -8 -------- Run | Scr Mat Min Mat Min Exi Min Mat Damage Taken 2499 | . 103 294 102 . . 315 1685 Core 725 | . 41 58 7 . . 65 554 Absorbed by Shields . | . . . . . . . . Core Remaining (%) 80 | 100 . 60 . . . 82 . Volleys Fired 72 | . 8 13 8 . . 21 22 Largest 2 | . 2 2 2 . . 2 2 Hottest 109 | . 70 73 73 . . 94 109 Shots Fired 133 | . 16 26 16 . . 42 33 Gun 119 | . 16 26 16 . . 35 26 Cannon 12 | . . . . . . 7 5 Launcher 2 | . . . . . . . 2 Special . | . . . . . . . . Kinetic 65 | . 8 13 8 . . 21 15 Thermal 66 | . 8 13 8 . . 21 16 Explosive 2 | . . . . . . . 2 Electromagnetic . | . . . . . . . . Robot Hit Streak 12 | . 4 10 5 . . 6 12 Robot Miss Streak 4 | . 2 1 1 . . 3 4 Penetration Max . | . . . . . . . . Secondary Targets 4 | . 1 . 1 . . 1 1 Max Gunslinging Chain 1 | . 1 . 1 . . 1 1 Shots Hit Robots 88 | . 9 20 8 . . 28 23 Core Hits 45 | . 2 8 5 . . 17 13 Critical Kills . | . . . . . . . . Critical Parts Destroyed . | . . . . . . . . Critical Strikes 8 | . . 2 1 . . 4 1 Burn 7 | . . 2 1 . . 3 1 Blast 1 | . . . . . . 1 . Melee Attacks . | . . . . . . . . Impact . | . . . . . . . . Slashing . | . . . . . . . . Piercing . | . . . . . . . . Sneak Attacks . | . . . . . . . . Combat Hostiles . | . . . . . . . . Follow-up Attacks . | . . . . . . . . Damage Inflicted 1468 | . 125 269 108 . . 403 563 Guns 1112 | . 125 269 108 . . 296 314 Cannons 185 | . . . . . . 107 78 Explosions 171 | . . . . . . . 171 Melee . | . . . . . . . . Ramming . | . . . . . . . . Kinetic 715 | . 76 157 47 . . 229 206 Thermal 582 | . 49 112 61 . . 174 186 Explosive 171 | . . . . . . . 171 Electromagnetic . | . . . . . . . . Impact . | . . . . . . . . Slashing . | . . . . . . . . Piercing . | . . . . . . . . Highest Corruption . | . . . . . . . . Average Corruption . | . . . . . . . . Corruption Purged . | . . . . . . . . Corruption Blocked . | . . . . . . . . Overload Shots . | . . . . . . . . Overflow Damage 8 | . . . . . . 8 . Projectiles 8 | . . . . . . 8 . Explosions . | . . . . . . . . Melee . | . . . . . . . . Knockbacks . | . . . . . . . . Impact . | . . . . . . . . Kinetic . | . . . . . . . . Secondary . | . . . . . . . . Self-Inflicted Damage . | . . . . . . . . Shots . | . . . . . . . . Rammed . | . . . . . . . . Targets Rammed . | . . . . . . . . Kicked . | . . . . . . . . Crushed . | . . . . . . . . Highest Temperature 184 | . 45 184 18 . . 114 154 Average Temperature 50 | . 18 86 6 . . 24 85 Received Heat Transfer 687 | . . 156 9 . . 18 504 Siege Activations . | . . . . . . . . Robots Corrupted . | . . . . . . . . Combat Hostiles . | . . . . . . . . Parts Fried . | . . . . . . . . Impact Corruptions . | . . . . . . . . Robots Melted . | . . . . . . . . Combat Hostiles . | . . . . . . . . Parts Melted 7 | . . 2 . . . 5 . Heat Transferred 2146 | . 148 481 259 . . 740 518 Parts Sabotaged . | . . . . . . . . Parts Stolen . | . . . . . . . . Parts Stripped . | . . . . . . . . Power Chain Reactions . | . . . . . . . . Missiles Intercepted . | . . . . . . . . Alert | -11 -10 -10 -9 -9 -9 -8 -8 ------- Run | Scr Mat Min Mat Min Exi Min Mat Peak Influence 280 | . 112 83 167 64 . 280 115 Initial 109 | . . 43 28 64 . . 109 Average 90 | . 74 75 108 64 . 145 64 Maximum Alert Level 1 | . . . . . . 1 . Low Security (%) 91 | 100 100 100 100 100 . 65 100 Level 1 8 | . . . . . . 34 . Level 2 . | . . . . . . . . Level 3 . | . . . . . . . . Level 4 . | . . . . . . . . Level 5 . | . . . . . . . . High Security . | . . . . . . . . Max Security . | . . . . . . . . Squads Dispatched 2 | . 1 . 1 . . . . Investigation 1 | . . . 1 . . . . Extermination . | . . . . . . . . Reinforcement 1 | . 1 . . . . . . Assault . | . . . . . . . . Garrison . | . . . . . . . . Intercept . | . . . . . . . . Searches Triggered . | . . . . . . . . Construction Impeded . | . . . . . . . . Haulers Reinforced . | . . . . . . . . Active Scanning Responses . | . . . . . . . . Cargo Convoy Interrupts . | . . . . . . . . Stealth | -11 -10 -10 -9 -9 -9 -8 -8 --------- Run | Scr Mat Min Mat Min Exi Min Mat Distress Signals 1 | . . . 1 . . . . Communications Jammed . | . . . . . . . . Distress Signals . | . . . . . . . . Times Spotted 36 | . 5 6 8 . . 11 6 Peak Tracking Total 4 | . 3 3 3 . . 3 4 Tactical Retreats 2 | . 1 . 1 . . . . Traps | -11 -10 -10 -9 -9 -9 -8 -8 ------- Run | Scr Mat Min Mat Min Exi Min Mat Traps Triggered . | . . . . . . . . Indirectly . | . . . . . . . . Trap Hack Attempts . | . . . . . . . . Triggered . | . . . . . . . . Disarmed . | . . . . . . . . Reprogrammed . | . . . . . . . . Reused . | . . . . . . . . Traps Extracted . | . . . . . . . . Installed . | . . . . . . . . Triggered . | . . . . . . . . Machines | -11 -10 -10 -9 -9 -9 -8 -8 ---------- Run | Scr Mat Min Mat Min Exi Min Mat Machines Disabled . | . . . . . . . . Max in Single Turn . | . . . . . . . . Machines Sabotaged . | . . . . . . . . Garrisons Compromised . | . . . . . . . . Overloaded Fab Kills . | . . . . . . . . Hacking | -11 -10 -10 -9 -9 -9 -8 -8 --------- Run | Scr Mat Min Mat Min Exi Min Mat Machines Accessed 4 | . 1 . 2 . 1 . . Terminals 2 | . 1 . 1 . . . . Fabricators . | . . . . . . . . Repair Stations . | . . . . . . . . Recycling Units . | . . . . . . . . Scanalyzers 1 | . . . 1 . . . . Garrison Access . | . . . . . . . . Total Hacks 18 | . 2 . 7 . 9 . . Successful 17 | . 1 . 7 . 9 . . Failed 1 | . 1 . . . . . . Catastrophic . | . . . . . . . . Database Lockouts . | . . . . . . . . Manual . | . . . . . . . . Terminals 7 | . 2 . 5 . . . . Fabricators . | . . . . . . . . Repair Stations . | . . . . . . . . Recycling Units . | . . . . . . . . Scanalyzers 2 | . . . 2 . . . . Garrison Access . | . . . . . . . . Terminal Hacks 15 | . 1 . 5 . 9 . . Record 14 | . 1 . 4 . 9 . . Zone Layout 1 | . . . 1 . . . . Fabricator Hacks . | . . . . . . . . Repair Station Hacks . | . . . . . . . . Recycling Unit Hacks . | . . . . . . . . Scanalyzer 2 | . . . 2 . . . . Insert Component 1 | . . . 1 . . . . Analyze 1 | . . . 1 . . . . Garrison Access Hacks . | . . . . . . . . Unauthorized Hacks . | . . . . . . . . Terminals . | . . . . . . . . Fabricators . | . . . . . . . . Repair Stations . | . . . . . . . . Recycling Units . | . . . . . . . . Scanalyzers . | . . . . . . . . Garrison Access . | . . . . . . . . Data Cores Recovered . | . . . . . . . . Used . | . . . . . . . . Hacking Detections 1 | . . . 1 . . . . Full Trace Events 1 | . . . 1 . . . . Feedback Events . | . . . . . . . . Feedback Blocked . | . . . . . . . . Robot Schematics Acquired . | . . . . . . . . Robots Built . | . . . . . . . . Authchips . | . . . . . . . . Time . | . . . . . . . . Total Robot Build Rating . | . . . . . . . . Part Schematics Acquired 1 | . . . 1 . . . . Parts Built . | . . . . . . . . Authchips . | . . . . . . . . Time . | . . . . . . . . Total Part Build Rating . | . . . . . . . . Parts Repaired . | . . . . . . . . Time . | . . . . . . . . Parts Recycled . | . . . . . . . . Recycled Matter . | . . . . . . . . Retrieved Matter . | . . . . . . . . Retrieved Components . | . . . . . . . . Parts Scanalyzed 1 | . . . 1 . . . . Part Schematics Acquired 1 | . . . 1 . . . . Parts Damaged . | . . . . . . . . Bothacking | -11 -10 -10 -9 -9 -9 -8 -8 ------------ Run | Scr Mat Min Mat Min Exi Min Mat Used RIF Installer . | . . . . . . . . Robots Hacked . | . . . . . . . . Non-combat . | . . . . . . . . Combat . | . . . . . . . . Robot Hacks Applied . | . . . . . . . . Relay Couplers Released . | . . . . . . . . Fabnet Peak Effective % . | . . . . . . . . Robots Rewired . | . . . . . . . . Allies Hacked . | . . . . . . . . Hacks Repelled . | . . . . . . . . Allies | -11 -10 -10 -9 -9 -9 -8 -8 -------- Run | Scr Mat Min Mat Min Exi Min Mat Total Allies 1 | . . 1 . . . . . Largest Group 1 | . . 1 . . . . . Highest-Rated Group 31 | . . 31 . . . . . Highest-Rated Ally 31 | . . 31 . . . . . Total Orders . | . . . . . . . . Ally Attacks 3 | . . 3 . . . . . Total Damage 22 | . . 22 . . . . . Kills 1 | . . 1 . . . . . Allies Corrupted . | . . . . . . . . Allies Melted . | . . . . . . . . Intel | -11 -10 -10 -9 -9 -9 -8 -8 ------- Run | Scr Mat Min Mat Min Exi Min Mat Robot Analysis Total . | . . . . . . . . Derelict Logs Recovered 2 | . . 1 . 1 . . . Drone Launches . | . . . . . . . . Drone Recoveries . | . . . . . . . . Exploration | -11 -10 -10 -9 -9 -9 -8 -8 ------------- Run | Scr Mat Min Mat Min Exi Min Mat Turns Passed 1714 | 68 203 519 163 75 166 370 150 Spaces Moved 1300 | 46 142 384 144 75 181 288 40 Core 28 | 6 . . . . . . 22 Treads . | . . . . . . . . Legs 721 | 40 142 384 16 . . 121 18 Wheels 551 | . . . 128 75 181 167 . Hover . | . . . . . . . . Flight . | . . . . . . . . Fastest Speed 50 | 50 120 120 90 90 90 90 100 Average Speed 108 | 115 120 120 93 90 90 102 180 Slowest Speed 350 | 150 120 120 120 90 90 120 350 Overloaded Moves . | . . . . . . . . Propulsion Burnouts . | . . . . . . . . Robots Hopped . | . . . . . . . . Cave-ins Triggered . | . . . . . . . . Exploration Rate (%) 32 | 3 25 51 18 20 52 85 8 Regions Visited 7 Branch Regions 4 Pre-discovered Areas 1 | . . . . . 1 . . Known Exits Taken . | . . . . . . . . Unknown Exits Taken 7 | 1 1 1 1 1 1 1 . Scrap Searched 5 | . . 2 . . . 3 . Spaces Dug . | . . . . . . . . Terrain Destroyed 3 | . . . . . . . 3 Melee . | . . . . . . . . Projectile 1 | . . . . . . . 1 AOE 2 | . . . . . . . 2 Terrain Rammed . | . . . . . . . . Walls Destroyed . | . . . . . . . . Machines Disabled . | . . . . . . . . Actions | -11 -10 -10 -9 -9 -9 -8 -8 --------- Run | Scr Mat Min Mat Min Exi Min Mat Total 1463 | 61 158 416 156 82 183 321 86 Wait 42 | . 5 11 2 8 2 . 14 Move 1293 | 45 141 383 143 74 180 287 40 Hop . | . . . . . . . . Pick Up 23 | 10 3 4 1 . 1 3 1 Fast Attach 2 | . . . . . . 2 . Attach 19 | 6 1 1 2 . . . 9 Detach . | . . . . . . . . Swap 5 | . . 2 . . . 3 . Drop 7 | . . 2 . . . 5 . Fire 72 | . 8 13 8 . . 21 22 Melee . | . . . . . . . . Ram . | . . . . . . . . Kick . | . . . . . . . . Crush . | . . . . . . . . Escape Stasis . | . . . . . . . . Rewire . | . . . . . . . . Trap . | . . . . . . . . Miscellaneous . | . . . . . . . . Route ------- -11/Scrapyard -10/Materials -10/Mines -9/Materials -9/Mines -9/Exiles -8/Mines -8/Materials History --------- Turn | Location | Event 13 | -11/Scrapyard | Discovered new exit (range 16) 69 | -11/Scrapyard | Entered Materials 199 | -10/Materials | Discovered new exit (range 16) 272 | -10/Materials | Entered Mines 304 | -10/Mines | Build established: Mutant 351 | -10/Mines | Discovered new exit (range 5) 357 | -10/Mines | Joined a pair of Derelicts in attacking an 0b10 outpost 515 | -10/Mines | Received a Mining Laser from a helpful Derelict 696 | -10/Mines | Learned Materials interactive machine intel 791 | -10/Mines | Entered Materials 791 | -9/Materials | Evolved 2 slots: Propulsion x2 792 | -9/Materials | Loaded intel: 18 interactive machine locations 941 | -9/Materials | Discovered new exit (range 12) 946 | -9/Materials | Met 8R-AWN 954 | -9/Materials | Entered Mines 955 | -9/Mines | Followed 8R-AWN into the Mines 968 | -9/Mines | Learned Materials security intel 1019 | -9/Mines | Discovered new exit (range 5) 1029 | -9/Mines | Entered Exiles 1053 | -9/Exiles | Welcomed by 8R-AWN 1075 | -9/Exiles | Met EX-HEX 1115 | -9/Exiles | Met EX-DEC 1125 | -9/Exiles | Learned location of Zion (-7) 1183 | -9/Exiles | Discovered new exit (range 10) 1195 | -9/Exiles | Entered Mines 1558 | -8/Mines | Discovered new exit (range 5) 1565 | -8/Mines | Entered Materials 1565 | -8/Materials | Evolved 2 slots: Utility x2 1640 | -8/Materials | Core integrity fell below 50% 1682 | -8/Materials | Core integrity fell below 20% 1709 | -8/Materials | Lost 15 parts (2p4n3u6w) 1715 | -8/Materials | Destroyed by Y-45 Defender with Heavy Assault Rifle Last Messages --------------- Slug penetrates Wall. G-50 Soldier suffers critical hit (Burn). G-50 Soldier destroyed. Switching to secondary target: G-47 Trooper. Hvy. Assault Rifle destroyed. Penetrated by Slug. Beam Rifle destroyed. K-01 Serf collects debris. Scythe destroyed. Penetrated by Slug. Slug penetrates Wall. Penetrated by Slug. Sml. Storage Unit destroyed. Imp. Ion Engine destroyed. Targeting Computer destroyed. Acquired Hpw. Shotgun. Slug penetrates Door. Penetrated by Slug. G-47 Trooper destroyed. Penetrated by Slug. Map ----- +----------------------------------------------------+ | | | | | | | | | | | | | | | | | | | | | | | | | | | | | | | | | ???????????????????#########?????????????????????? | | ???????????????????# #????????????????????? | | ???????????????????# #????????????????????? | | ???????????????????#! #????????????????????? | | ???????????????????# #????????????????????? | | ???????????????????# #????????????????????? | | ???????????????????# #????????????????????? | | ???????????????????# #????????????????????? | | ??######???????????# #????????????????????? | | ??# #???????????# @ #????????????????????? | | ??# #???????????#####Y####????????????????????? | | ??# ###############!h #?????????????????????? | | ??# u [ #?????????????????????? | | ??# T #?????????????????????? | | ??# "" #?????????????????????? | | ??# "" ######## #?????????????????????? | | ??# "" #??????## ##?????????????????????? | | ??# #???????# #??????????????????????? | | ??# #???????# #??????????????????????? | | ??# %= !! #???????# #??????????????????????? | | ??# ! #???????# #??????????????????????? | | ?? %= #???????# #??????????????????????? | | ?? !! #???????# #??????????????????????? | | ??# !! #??????? ??????????????????????? | | ?? !! ?????? ??????????????????????? | | ? ???? #?????????????????????? | | ??? #?????????????????????? | | ### *%%#####+#####??# ?????????????????????? | | ??###/%##????????????#######?????????????????????? | | ???? ?????????????????????????????????????????? | | ???? ?????????????????????????????????????????? | | ???? ?????????????????????????????????????????? | | ???? ! ?????????????????????????????????????????? | | ????? ?????????????????????????????????????????? | +----------------------------------------------------+ Best States ------------- Heat Dissipation 31 Energy Generation 12 Energy Capacity 265 Matter Stores 300 Matter Capacity 300 Sight Range 16 Terrain Scan Density 10 ECM Strength 1 Evasion (%) 55 Targeting Accuracy 5 Item Schematics ----------------- ECM Suite | -9/Materials | Scanalyzed Robot Schematics ------------------ None Fabricated ------------ Nothing Alien Tech Used ----------------- None Achievements -------------- Librarian Tourist Challenges ------------ None Game ------ Seed MomentumSmartbombBarrier Manual? 0 Play Time 00:48:27 Cumulative 5.5 hours Start 2022.06.01 @ 18:26:25 End 2022.06.01 @ 19:29:09 Sessions 1 Manual Loads 0 Difficulty Rogue Special Mode None Game No. 5 Rogue 5 Adventurer 0 Explorer 0 Win Type - Total 0 Types 0/0/0/0/0/0/0/0/0 Lore% 4 Gallery% 4 Achievement% 5 Wizard Run 0 Options --------- ASCII 0 Keyboard 0 Movement Mouse Keybinds 0 Fullscreen 1 Font 36/TerminusFine Map View 76x50 Tactical HUD 0 Map Filters NONE Filters NONE Steam 1 RUN: b7057a9f-790c-4622-a8a1-6ffec71f775d